[Event "*** Titled Tuesday 3|2 Blitz"]
[Site "Chess.com"]
[Date "2016.06.07"]
[Round "8"]
[White "Ksenia_Legenko"]
[Black "FearlessKing64"]
[Result "1-0"]
[WhiteElo "2067"]
[BlackElo "2087"]
[TimeControl "180+2"]
[EndTime "18:39:39 PDT"]
[Termination "Ksenia_Legenko won by resignation"]

1. d4 {[%clk 0:03:01.9]} 1... Nf6 {[%clk 0:03:00.2]} 2. c4 {[%clk 0:03:02.3]}
2... g6 {[%clk 0:03:01.4]} 3. Nc3 {[%clk 0:03:02.3]} 3... d5 {[%clk 0:03:02]} 4.
cxd5 {[%clk 0:02:59.7]} 4... Nxd5 {[%clk 0:03:03.9]} 5. e4 {[%clk 0:03:01.2]}
5... Nxc3 {[%clk 0:03:04.9]} 6. bxc3 {[%clk 0:03:01.7]} 6... Bg7 {[%clk
0:03:06.5]} 7. Bc4 {[%clk 0:03:00.3]} 7... c5 {[%clk 0:03:07.2]} 8. Ne2 {[%clk
0:03:00]} 8... Nc6 {[%clk 0:03:04.6]} 9. Be3 {[%clk 0:02:58]} 9... O-O {[%clk
0:03:04.9]} 10. O-O {[%clk 0:02:57.8]} 10... Bg4 {[%clk 0:03:04.4]} 11. f3
{[%clk 0:02:58]} 11... cxd4 {[%clk 0:03:05.4]} 12. cxd4 {[%clk 0:02:54.9]} 12...
Na5 {[%clk 0:03:05.8]} 13. Bxf7+ {[%clk 0:02:43.4]} 13... Rxf7 {[%clk
0:03:07.7]} 14. fxg4 {[%clk 0:02:44.1]} 14... Rxf1+ {[%clk 0:03:09.6]} 15. Kxf1
{[%clk 0:02:43.6]} 15... e5 {[%clk 0:03:11.2]} 16. d5 {[%clk 0:02:36.8]} 16...
Nc4 {[%clk 0:03:12]} 17. Bf2 {[%clk 0:02:29.8]} 17... Qf6 {[%clk 0:03:13.3]} 18.
Kg1 {[%clk 0:02:30.1]} 18... Rf8 {[%clk 0:03:11.6]} 19. Qe1 {[%clk 0:02:11.8]}
19... a6 {[%clk 0:02:59.8]} 20. a4 {[%clk 0:02:07.2]} 20... b5 {[%clk
0:02:56.3]} 21. axb5 {[%clk 0:02:07.3]} 21... axb5 {[%clk 0:02:58.2]} 22. Rb1
{[%clk 0:02:07.4]} 22... Nd2 {[%clk 0:02:39.1]} 23. Qxd2 {[%clk 0:01:40.5]}
23... Qxf2+ {[%clk 0:02:38.2]} 24. Kh1 {[%clk 0:01:41.6]} 24... Bh6 {[%clk
0:02:28.1]} 25. Qd3 {[%clk 0:01:33.8]} 25... b4 {[%clk 0:02:15.8]} 26. Ng1
{[%clk 0:01:31.3]} 26... Qd4 {[%clk 0:02:06.7]} 27. Qxd4 {[%clk 0:00:52.7]}
27... exd4 {[%clk 0:02:08.6]} 28. Nf3 {[%clk 0:00:53.3]} 28... d3 {[%clk
0:01:52]} 29. g5 {[%clk 0:00:51.7]} 29... Bg7 {[%clk 0:01:25.2]} 30. e5 {[%clk
0:00:52]} 30... Rb8 {[%clk 0:01:19.1]} 31. Kg1 {[%clk 0:00:45.7]} 31... Bf8
{[%clk 0:01:16.1]} 32. d6 {[%clk 0:00:44.2]} 32... Kf7 {[%clk 0:01:12.4]} 33.
Kf2 {[%clk 0:00:43.6]} 33... Ke6 {[%clk 0:01:12.7]} 34. Ke3 {[%clk 0:00:44.5]}
34... h6 {[%clk 0:01:13.4]} 35. h4 {[%clk 0:00:42]} 35... hxg5 {[%clk
0:01:13.1]} 36. hxg5 {[%clk 0:00:42.2]} 36... Bg7 {[%clk 0:00:59.5]} 37. Kxd3
{[%clk 0:00:42.8]} 37... Rb5 {[%clk 0:01:00.8]} 38. Nd4+ {[%clk 0:00:38.3]} 1-0

[Event "*** Titled Tuesday 3|2 Blitz"]
[Site "Chess.com"]
[Date "2016.06.07"]
[Round "8"]
[White "MaestroASK"]
[Black "ilya261991"]
[Result "1-0"]
[WhiteElo "2475"]
[BlackElo "2504"]
[TimeControl "180+2"]
[EndTime "18:39:51 PDT"]
[Termination "MaestroASK won by resignation"]

1. d4 {[%clk 0:02:54.9]} 1... Nf6 {[%clk 0:02:59.2]} 2. Bg5 {[%clk 0:02:55.4]}
2... g6 {[%clk 0:02:56.5]} 3. Bxf6 {[%clk 0:02:56.1]} 3... exf6 {[%clk
0:02:57.9]} 4. e3 {[%clk 0:02:57.6]} 4... f5 {[%clk 0:02:58.9]} 5. h4 {[%clk
0:02:58.6]} 5... Bg7 {[%clk 0:02:59.1]} 6. g3 {[%clk 0:02:59.3]} 6... c5 {[%clk
0:02:56.2]} 7. c3 {[%clk 0:02:59.7]} 7... Nc6 {[%clk 0:02:56.6]} 8. dxc5 {[%clk
0:02:59.2]} 8... Qa5 {[%clk 0:02:53.6]} 9. Qd5 {[%clk 0:02:56.8]} 9... b6 {[%clk
0:02:40]} 10. Bc4 {[%clk 0:02:56.5]} 10... O-O {[%clk 0:02:39.3]} 11. cxb6
{[%clk 0:02:53.9]} 11... Qxb6 {[%clk 0:02:39.7]} 12. Qb5 {[%clk 0:02:53.7]}
12... Ne5 {[%clk 0:02:31.6]} 13. Qxb6 {[%clk 0:02:49.8]} 13... axb6 {[%clk
0:02:32.7]} 14. Be2 {[%clk 0:02:44.7]} 14... Bb7 {[%clk 0:02:31.1]} 15. f3
{[%clk 0:02:44.8]} 15... Rfe8 {[%clk 0:02:26.1]} 16. Rh2 {[%clk 0:02:37.3]}
16... Bh6 {[%clk 0:02:14.4]} 17. f4 {[%clk 0:02:28.5]} 17... Ng4 {[%clk
0:02:15.2]} 18. Bxg4 {[%clk 0:02:24]} 18... fxg4 {[%clk 0:02:16.7]} 19. Kd2
{[%clk 0:02:22.5]} 19... Ra5 {[%clk 0:02:13.8]} 20. Ne2 {[%clk 0:02:22.6]} 20...
Rea8 {[%clk 0:02:04.8]} 21. a3 {[%clk 0:02:22.5]} 21... Rb5 {[%clk 0:02:05.1]}
22. b4 {[%clk 0:02:22.8]} 22... Re8 {[%clk 0:01:55]} 23. Nd4 {[%clk 0:02:19.5]}
23... Rd5 {[%clk 0:01:56]} 24. c4 {[%clk 0:02:07.5]} 24... Rd6 {[%clk
0:01:56.5]} 25. Nc3 {[%clk 0:02:06.8]} 25... Bg7 {[%clk 0:01:56.1]} 26. Nb5
{[%clk 0:02:06.8]} 26... Rf6 {[%clk 0:01:53.4]} 27. Re2 {[%clk 0:02:03.2]} 27...
Rc8 {[%clk 0:01:49]} 28. Rc1 {[%clk 0:02:00.2]} 28... d5 {[%clk 0:01:43.4]} 29.
cxd5 {[%clk 0:01:58.9]} 29... Rxc1 {[%clk 0:01:43.7]} 30. Kxc1 {[%clk
0:01:59.6]} 30... Bxd5 {[%clk 0:01:45.4]} 31. Rc2 {[%clk 0:02:00.3]} 31... h5
{[%clk 0:01:45.3]} 32. Rc8+ {[%clk 0:02:00]} 32... Kh7 {[%clk 0:01:46]} 33. Kd2
{[%clk 0:01:58.3]} 33... Be4 {[%clk 0:01:38.4]} 34. a4 {[%clk 0:01:57.8]} 34...
Bg2 {[%clk 0:01:37.5]} 35. Rd8 {[%clk 0:01:53.3]} 35... Bc6 {[%clk 0:01:13.5]}
36. Kd3 {[%clk 0:01:43.6]} 36... Bxb5+ {[%clk 0:01:11.5]} 37. axb5 {[%clk
0:01:38.2]} 37... Bh6 {[%clk 0:01:08.4]} 38. e4 {[%clk 0:01:30.6]} 38... Bxf4
{[%clk 0:01:08.8]} 39. gxf4 {[%clk 0:01:31]} 39... g3 {[%clk 0:01:10.3]} 40. Ne2
{[%clk 0:01:27.7]} 40... g2 {[%clk 0:01:11.6]} 41. Ke3 {[%clk 0:01:28.5]} 41...
Re6 {[%clk 0:01:06.7]} 42. Rd7 {[%clk 0:01:25.7]} 42... Kg7 {[%clk 0:01:04.1]}
43. Kf3 {[%clk 0:01:25.5]} 43... Re8 {[%clk 0:01:02.5]} 44. e5 {[%clk
0:01:25.7]} 44... Rc8 {[%clk 0:01:03.8]} 45. Kxg2 {[%clk 0:01:24.1]} 45... Rc4
{[%clk 0:01:02.7]} 46. e6 {[%clk 0:01:24.1]} 46... Rxb4 {[%clk 0:01:02.5]} 47.
Rxf7+ {[%clk 0:01:23.5]} 47... Kg8 {[%clk 0:01:03.1]} 48. Kf3 {[%clk 0:01:22.6]}
48... Rxb5 {[%clk 0:01:03.5]} 49. Rb7 {[%clk 0:01:22.9]} 49... Kf8 {[%clk
0:01:03.8]} 50. Nd4 {[%clk 0:01:22.7]} 50... Rb1 {[%clk 0:01:02.5]} 51. Nc6
{[%clk 0:01:20.7]} 51... Re1 {[%clk 0:00:59.6]} 52. Ne5 {[%clk 0:01:20.4]} 52...
g5 {[%clk 0:00:59]} 53. hxg5 {[%clk 0:01:20.6]} 53... h4 {[%clk 0:01:00]} 54.
Kg4 {[%clk 0:01:21.7]} 1-0

[Event "*** Titled Tuesday 3|2 Blitz"]
[Site "Chess.com"]
[Date "2016.06.07"]
[Round "8"]
[White "Danirod"]
[Black "aspired"]
[Result "1-0"]
[WhiteElo "2446"]
[BlackElo "2474"]
[TimeControl "180+2"]
[EndTime "18:40:30 PDT"]
[Termination "Danirod won on time"]

1. e4 {[%clk 0:02:59.2]} 1... e5 {[%clk 0:03:00.5]} 2. Nf3 {[%clk 0:03:00.3]}
2... d6 {[%clk 0:03:01.8]} 3. d4 {[%clk 0:03:00]} 3... exd4 {[%clk 0:03:03.7]}
4. Qxd4 {[%clk 0:02:59.1]} 4... Nf6 {[%clk 0:03:05.6]} 5. Nc3 {[%clk 0:02:58]}
5... Be7 {[%clk 0:03:05.5]} 6. Bg5 {[%clk 0:02:47.3]} 6... Nc6 {[%clk
0:03:05.7]} 7. Qd2 {[%clk 0:02:45.4]} 7... h6 {[%clk 0:03:02.1]} 8. Bf4 {[%clk
0:02:46.4]} 8... Be6 {[%clk 0:02:57.8]} 9. Nd4 {[%clk 0:02:44.6]} 9... Nxd4
{[%clk 0:02:56.7]} 10. Qxd4 {[%clk 0:02:46.5]} 10... O-O {[%clk 0:02:52.5]} 11.
Bd3 {[%clk 0:02:37.5]} 11... Nh5 {[%clk 0:02:49.7]} 12. Bd2 {[%clk 0:02:35.5]}
12... Bf6 {[%clk 0:02:43.6]} 13. Qe3 {[%clk 0:02:35.9]} 13... Bg5 {[%clk
0:02:43.9]} 14. Qe2 {[%clk 0:02:36.8]} 14... Nf4 {[%clk 0:02:33.7]} 15. Qf3
{[%clk 0:02:35.4]} 15... Nxd3+ {[%clk 0:02:25.5]} 16. Qxd3 {[%clk 0:02:37.1]}
16... Bxd2+ {[%clk 0:02:14.1]} 17. Qxd2 {[%clk 0:02:38]} 17... Re8 {[%clk
0:02:14.7]} 18. O-O {[%clk 0:02:37.6]} 18... Qg5 {[%clk 0:02:14.3]} 19. f4
{[%clk 0:02:36.8]} 19... Qc5+ {[%clk 0:02:14.4]} 20. Kh1 {[%clk 0:02:36.7]}
20... f5 {[%clk 0:02:15.4]} 21. Rae1 {[%clk 0:02:36.3]} 21... Qc6 {[%clk
0:02:11.9]} 22. e5 {[%clk 0:02:33.7]} 22... Rad8 {[%clk 0:02:10.9]} 23. Qf2
{[%clk 0:02:29]} 23... Bc4 {[%clk 0:02:00.8]} 24. Rg1 {[%clk 0:02:29.4]} 24...
dxe5 {[%clk 0:01:58.9]} 25. Rxe5 {[%clk 0:02:22.9]} 25... Rxe5 {[%clk
0:01:57.6]} 26. fxe5 {[%clk 0:02:24.8]} 26... Be6 {[%clk 0:01:53.6]} 27. Qe3
{[%clk 0:02:03.9]} 27... a6 {[%clk 0:01:47]} 28. h3 {[%clk 0:02:00.1]} 28... b5
{[%clk 0:01:45.2]} 29. a3 {[%clk 0:02:01.6]} 29... a5 {[%clk 0:01:45]} 30. Rc1
{[%clk 0:01:45.1]} 30... f4 {[%clk 0:01:09.3]} 31. Qxf4 {[%clk 0:01:34.9]} 31...
Bxh3 {[%clk 0:01:09.7]} 32. Ne4 {[%clk 0:01:36.3]} 32... Rf8 {[%clk 0:01:02.2]}
33. Qe3 {[%clk 0:01:23.1]} 33... Bf5 {[%clk 0:01:00.5]} 34. Nc5 {[%clk
0:01:15.2]} 34... Re8 {[%clk 0:00:46.4]} 35. b4 {[%clk 0:01:15.9]} 35... axb4
{[%clk 0:00:46.7]} 36. axb4 {[%clk 0:01:16.7]} 36... Qd5 {[%clk 0:00:45.6]} 37.
Re1 {[%clk 0:00:54]} 37... Bxc2 {[%clk 0:00:46.2]} 38. e6 {[%clk 0:00:55.4]}
38... Bf5 {[%clk 0:00:47]} 39. e7 {[%clk 0:00:56.7]} 39... Bg6 {[%clk
0:00:48.1]} 40. Qf4 {[%clk 0:00:51.8]} 40... c6 {[%clk 0:00:34.9]} 41. Qc7
{[%clk 0:00:39.6]} 41... Qd4 {[%clk 0:00:21.3]} 42. Qg3 {[%clk 0:00:34.5]} 1-0

[Event "*** Titled Tuesday 3|2 Blitz"]
[Site "Chess.com"]
[Date "2016.06.07"]
[Round "8"]
[White "AleksandrKholin"]
[Black "attack2mateU"]
[Result "1-0"]
[WhiteElo "2139"]
[BlackElo "2411"]
[TimeControl "180+2"]
[EndTime "18:40:40 PDT"]
[Termination "AleksandrKholin won by resignation"]

1. Nf3 {[%clk 0:03:01.9]} 1... c5 {[%clk 0:02:56]} 2. g3 {[%clk 0:03:02.8]} 2...
Nc6 {[%clk 0:02:53.3]} 3. c4 {[%clk 0:03:03.3]} 3... g6 {[%clk 0:02:54.4]} 4.
Bg2 {[%clk 0:03:04.3]} 4... Bg7 {[%clk 0:02:55.3]} 5. O-O {[%clk 0:03:05.9]}
5... e5 {[%clk 0:02:54.8]} 6. Nc3 {[%clk 0:03:06.9]} 6... Nge7 {[%clk 0:02:56]}
7. Rb1 {[%clk 0:03:07.8]} 7... O-O {[%clk 0:02:55.9]} 8. e4 {[%clk 0:03:06.7]}
8... d6 {[%clk 0:02:54.6]} 9. d3 {[%clk 0:03:07.9]} 9... f5 {[%clk 0:02:51.5]}
10. a3 {[%clk 0:03:06.9]} 10... a5 {[%clk 0:02:51.9]} 11. Ne1 {[%clk 0:03:05.5]}
11... f4 {[%clk 0:02:51.4]} 12. Nc2 {[%clk 0:03:06.4]} 12... g5 {[%clk
0:02:46.2]} 13. f3 {[%clk 0:02:46.6]} 13... h5 {[%clk 0:02:43.8]} 14. b4 {[%clk
0:02:41.4]} 14... axb4 {[%clk 0:02:37.2]} 15. axb4 {[%clk 0:02:42.1]} 15... b6
{[%clk 0:02:29.6]} 16. Nd5 {[%clk 0:02:39]} 16... Nxd5 {[%clk 0:02:22.4]} 17.
cxd5 {[%clk 0:02:38]} 17... Nd4 {[%clk 0:02:24]} 18. bxc5 {[%clk 0:02:34.6]}
18... bxc5 {[%clk 0:02:23.5]} 19. Nxd4 {[%clk 0:02:35.7]} 19... cxd4 {[%clk
0:02:23.3]} 20. Bd2 {[%clk 0:02:34.1]} 20... Ra3 {[%clk 0:02:18.3]} 21. Bb4
{[%clk 0:02:34.4]} 21... Ra6 {[%clk 0:02:15.3]} 22. Rf2 {[%clk 0:02:30.7]} 22...
Rf6 {[%clk 0:01:33]} 23. Rfb2 {[%clk 0:02:24.9]} 23... g4 {[%clk 0:01:20.4]} 24.
Be1 {[%clk 0:02:15]} 24... Rg6 {[%clk 0:01:16.2]} 25. Rb8 {[%clk 0:02:11.2]}
25... fxg3 {[%clk 0:00:48.4]} 26. hxg3 {[%clk 0:02:07.9]} 26... Kh7 {[%clk
0:00:42.7]} 27. Rc1 {[%clk 0:02:06.2]} 27... Ra2 {[%clk 0:00:36.7]} 28. Rbxc8
{[%clk 0:02:03.7]} 28... Qg5 {[%clk 0:00:37.4]} 29. R8c2 {[%clk 0:01:59.9]}
29... Rxc2 {[%clk 0:00:17]} 30. Rxc2 {[%clk 0:01:59.2]} 30... gxf3 {[%clk
0:00:18.4]} 31. Bxf3 {[%clk 0:01:58.7]} 31... h4 {[%clk 0:00:19.4]} 32. Rh2
{[%clk 0:01:58]} 32... Bh6 {[%clk 0:00:18.8]} 33. g4 {[%clk 0:01:53]} 33... Rf6
{[%clk 0:00:14]} 34. Kg2 {[%clk 0:01:48.3]} 34... Qe3 {[%clk 0:00:08]} 35. Bxh4
{[%clk 0:01:47.2]} 35... Rg6 {[%clk 0:00:03.4]} 36. Bf2 {[%clk 0:01:44.9]} 36...
Qf4 {[%clk 0:00:04]} 37. Bg3 {[%clk 0:01:44.4]} 37... Qe3 {[%clk 0:00:05.2]} 38.
Qe2 {[%clk 0:01:45]} 38... Qc1 {[%clk 0:00:06.2]} 39. Rh1 {[%clk 0:01:45.2]}
39... Qg5 {[%clk 0:00:07.3]} 40. Rh5 {[%clk 0:01:45.5]} 40... Qe7 {[%clk
0:00:08.3]} 41. Bh4 {[%clk 0:01:42.1]} 41... Qg7 {[%clk 0:00:06.3]} 42. Rf5
{[%clk 0:01:30.4]} 42... Bf4 {[%clk 0:00:05.8]} 43. Rh5+ {[%clk 0:01:29.5]}
43... Kg8 {[%clk 0:00:06.7]} 44. Kh3 {[%clk 0:01:30.1]} 44... Rh6 {[%clk
0:00:06.3]} 45. Rxh6 {[%clk 0:01:30.8]} 45... Qxh6 {[%clk 0:00:08.2]} 46. Qf2
{[%clk 0:01:30.6]} 46... Kg7 {[%clk 0:00:07.2]} 47. Kg2 {[%clk 0:01:31.5]} 47...
Be3 {[%clk 0:00:07.9]} 48. Qe1 {[%clk 0:01:31.7]} 48... Bf4 {[%clk 0:00:09]} 49.
Bg3 {[%clk 0:01:32.8]} 49... Be3 {[%clk 0:00:08.2]} 50. Qh1 {[%clk 0:01:32.8]}
50... Qf6 {[%clk 0:00:07.8]} 51. Qh5 {[%clk 0:01:33.4]} 51... Qd8 {[%clk
0:00:08.8]} 52. g5 {[%clk 0:01:30.8]} 52... Bxg5 {[%clk 0:00:07.9]} 53. Bg4
{[%clk 0:01:29.3]} 53... Qf6 {[%clk 0:00:06.4]} 54. Bf5 {[%clk 0:01:30.2]} 54...
Qh6 {[%clk 0:00:04.9]} 55. Qxh6+ {[%clk 0:01:30.2]} 55... Bxh6 {[%clk
0:00:06.8]} 56. Kf3 {[%clk 0:01:31.3]} 56... Kf6 {[%clk 0:00:08.2]} 57. Kg4
{[%clk 0:01:32.3]} 57... Be3 {[%clk 0:00:09.4]} 58. Bh4+ {[%clk 0:01:33.3]}
58... Kf7 {[%clk 0:00:10.7]} 59. Kh5 {[%clk 0:01:34.6]} 59... Bf4 {[%clk
0:00:11]} 60. Bg6+ {[%clk 0:01:35.3]} 60... Kf8 {[%clk 0:00:10.4]} 61. Bg5
{[%clk 0:01:36.3]} 61... Bg3 {[%clk 0:00:09.8]} 62. Kg4 {[%clk 0:01:37.5]} 62...
Be1 {[%clk 0:00:10.8]} 63. Kf5 {[%clk 0:01:38.8]} 1-0

[Event "*** Titled Tuesday 3|2 Blitz"]
[Site "Chess.com"]
[Date "2016.06.07"]
[Round "8"]
[White "Andrejkin"]
[Black "BikingBrian"]
[Result "1/2-1/2"]
[WhiteElo "2114"]
[BlackElo "2092"]
[TimeControl "180+2"]
[EndTime "18:41:03 PDT"]
[Termination "Game drawn by agreement"]

1. d4 {[%clk 0:03:01.7]} 1... Nf6 {[%clk 0:03:00.8]} 2. c4 {[%clk 0:03:02.6]}
2... g6 {[%clk 0:03:02]} 3. Nc3 {[%clk 0:03:02.9]} 3... Bg7 {[%clk 0:03:03.6]}
4. e4 {[%clk 0:03:03.8]} 4... d6 {[%clk 0:03:04.8]} 5. Nf3 {[%clk 0:03:05.4]}
5... O-O {[%clk 0:03:05.7]} 6. Be2 {[%clk 0:03:07.1]} 6... Na6 {[%clk
0:03:07.1]} 7. O-O {[%clk 0:03:07.2]} 7... e5 {[%clk 0:03:08.4]} 8. dxe5 {[%clk
0:03:08.6]} 8... dxe5 {[%clk 0:03:08]} 9. Be3 {[%clk 0:03:09.6]} 9... Qe7 {[%clk
0:02:55.6]} 10. h3 {[%clk 0:03:08.2]} 10... c6 {[%clk 0:02:53.7]} 11. Qc2 {[%clk
0:03:05.8]} 11... Nh5 {[%clk 0:02:45.7]} 12. a3 {[%clk 0:03:02.3]} 12... f5
{[%clk 0:02:41.4]} 13. b4 {[%clk 0:02:40.6]} 13... f4 {[%clk 0:02:38.9]} 14. Bc1
{[%clk 0:02:39.6]} 14... Be6 {[%clk 0:02:38.3]} 15. Bb2 {[%clk 0:02:39.6]} 15...
g5 {[%clk 0:02:35.7]} 16. Nxe5 {[%clk 0:02:23]} 16... Bxe5 {[%clk 0:02:36.1]}
17. Bxh5 {[%clk 0:02:23.8]} 17... Bxc4 {[%clk 0:02:36]} 18. Rfd1 {[%clk
0:02:22.7]} 18... Rad8 {[%clk 0:02:33.1]} 19. Na4 {[%clk 0:02:13]} 19... Bb5
{[%clk 0:02:14.6]} 20. Bxe5 {[%clk 0:02:02.9]} 20... Qxe5 {[%clk 0:02:15.8]} 21.
Bf3 {[%clk 0:01:58.7]} 21... Bxa4 {[%clk 0:01:39.2]} 22. Qxa4 {[%clk 0:01:58.6]}
22... c5 {[%clk 0:01:38.9]} 23. b5 {[%clk 0:01:53.3]} 23... Nc7 {[%clk
0:01:33.7]} 24. Qxa7 {[%clk 0:01:48.8]} 24... Nxb5 {[%clk 0:01:33.8]} 25. Qxb7
{[%clk 0:01:48.6]} 25... Nd4 {[%clk 0:01:32.6]} 26. Bg4 {[%clk 0:01:35.9]} 26...
f3 {[%clk 0:01:28]} 27. gxf3 {[%clk 0:01:19.7]} 27... Ne2+ {[%clk 0:01:14.1]}
28. Kf1 {[%clk 0:01:09.6]} 28... Rxd1+ {[%clk 0:01:14.9]} 29. Rxd1 {[%clk
0:01:09.5]} 29... Nd4 {[%clk 0:01:15.9]} 30. Qd5+ {[%clk 0:00:46.4]} 30... Qxd5
{[%clk 0:01:17]} 31. exd5 {[%clk 0:00:48.3]} 31... Ra8 {[%clk 0:01:12.5]} 32.
Rc1 {[%clk 0:00:46.2]} 32... Rxa3 {[%clk 0:01:09.7]} 33. Rxc5 {[%clk 0:00:45]}
33... Nxf3 {[%clk 0:01:07.3]} 34. Kg2 {[%clk 0:00:40.4]} 34... Ne5 {[%clk
0:00:59.7]} 35. d6 {[%clk 0:00:38.3]} 35... Nxg4 {[%clk 0:00:53.4]} 36. Rxg5+
{[%clk 0:00:34.1]} 36... Kf7 {[%clk 0:00:54]} 37. hxg4 {[%clk 0:00:34]} 37...
Rd3 {[%clk 0:00:53.8]} 38. Rf5+ {[%clk 0:00:34.8]} 38... Kg6 {[%clk 0:00:52]}
39. f3 {[%clk 0:00:31.9]} 39... Rxd6 {[%clk 0:00:44.9]} 40. Kg3 {[%clk
0:00:32.8]} 40... Rd4 {[%clk 0:00:43.8]} 41. Rf4 {[%clk 0:00:33.2]} 41... Rd1
{[%clk 0:00:44.2]} 42. Ra4 {[%clk 0:00:32.9]} 42... Rd6 {[%clk 0:00:39.4]} 43.
Kf4 {[%clk 0:00:33.6]} 43... h5 {[%clk 0:00:39.4]} 44. Ra8 {[%clk 0:00:27]}
44... hxg4 {[%clk 0:00:38.9]} 45. Kxg4 {[%clk 0:00:27.6]} 45... Kf7 {[%clk
0:00:32.3]} 46. f4 {[%clk 0:00:27.8]} 46... Rb6 {[%clk 0:00:33.2]} 47. f5 {[%clk
0:00:27.6]} 47... Rc6 {[%clk 0:00:34.5]} 48. Kg5 {[%clk 0:00:28.4]} 48... Rb6
{[%clk 0:00:35.2]} 49. Ra7+ {[%clk 0:00:29.1]} 49... Kf8 {[%clk 0:00:33.8]} 50.
Rh7 {[%clk 0:00:28.7]} 50... Ra6 {[%clk 0:00:32.9]} 51. Rh1 {[%clk 0:00:26.6]}
51... Rb6 {[%clk 0:00:33.2]} 52. Rg1 {[%clk 0:00:25.7]} 52... Ra6 {[%clk
0:00:34.1]} 53. Rg4 {[%clk 0:00:26.4]} 53... Rb6 {[%clk 0:00:34.6]} 54. Rh4
{[%clk 0:00:26.2]} 54... Ra6 {[%clk 0:00:35.6]} 55. Rh7 {[%clk 0:00:27.4]} 55...
Rb6 {[%clk 0:00:36.3]} 56. f6 {[%clk 0:00:27]} 56... Rb1 {[%clk 0:00:37]} 57.
Kg6 {[%clk 0:00:26]} 57... Rg1+ {[%clk 0:00:37.9]} 58. Kf5 {[%clk 0:00:27.5]}
58... Rf1+ {[%clk 0:00:39.1]} 59. Ke6 {[%clk 0:00:29]} 59... Re1+ {[%clk
0:00:40.5]} 60. Kf5 {[%clk 0:00:29.3]} 1/2-1/2